bitfinex-derivatives/quotes_ETHF0:USTF0_20250919
["timestamp","ask_amount","ask_price","bid_price","bid_amount"]
[1758241186626,1.20735844,4597.2,4597.1,0.6906]
[1758241191037,0.97695844,4597.2,4597.1,0.6906]
[1758241191438,0.75795844,4597.2,4597.1,0.6906]
[1758241191633,0.97695844,4597.2,4597.1,0.6906]
[1758241193538,0.97719505,4597.2,4597.1,0.6906]
[1758241196739,0.75819505,4597.2,4597.1,4.6906]
[1758241196937,0.75819505,4597.2,4597.1,4.90813]
[1758241197139,0.219,4597.6,4597.5,0.8089]
[1758241200738,0.3342,4597.6,4597.5,0.8089]
[1758241201443,0.219,4597.6,4597.5,0.8089]
[1758241201744,0.1152,4598.1,4598.0,0.6499]
[1758241201939,0.5214,4598.1,4598.0,0.6332]
[1758241202239,0.5214,4598.1,4598.0,0.439]
[1758241202437,0.2304,4597.6,4597.5,0.4284]
[1758241202638,0.4494,4597.6,4597.5,0.6226]
[1758241202840,0.5214,4597.6,4597.5,0.4284]
[1758241203840,0.5214,4597.6,4597.5,0.6226]
[1758241204040,0.4494,4597.6,4597.5,0.6226]
[1758241204436,0.4494,4597.6,4597.5,0.4284]
[1758241204640,0.5214,4597.6,4597.5,0.4284]
[1758241205040,0.4494,4597.6,4597.5,0.6226]
[1758241205935,0.5214,4597.6,4597.5,0.6226]
[1758241209143,1.27770723,4597.6,4597.5,0.6226]
[1758241210143,1.20570723,4597.6,4597.5,0.8335]
[1758241212541,0.98670723,4597.6,4597.5,0.8335]
[1758241212745,1.27770723,4597.6,4597.5,0.6226]
[1758241212941,1.27770723,4597.6,4597.5,0.4284]
[1758241213444,1.27770723,4597.6,4597.5,0.6226]
[1758241214147,1.27770723,4597.6,4597.5,0.4284]
[1758241217844,1.20570723,4597.6,4597.5,0.6226]
[1758241218048,1.20570723,4597.6,4597.5,0.8335]
[1758241219141,0.75630723,4597.6,4597.5,0.8335]
[1758241219546,0.65660723,4597.6,4597.5,4.8335]
[1758241221849,0.43760723,4597.6,4597.5,4.8335]
[1758241222051,0.11890723,4597.6,4597.5,4.8335]
[1758241222247,3.2078,4598.2,4598.1,0.7186]
[1758241222450,3.4268,4598.2,4598.1,0.7186]
[1758241223354,0.219,4598.2,4598.1,0.7186]
[1758241223556,3.2078,4598.7,4598.2,0.3135]
[1758241223756,3.2078,4598.7,4598.6,0.7186]
[1758241224057,0.219,4598.7,4598.6,0.4051]
[1758241224556,0.219,4598.7,4598.6,0.7186]
[1758241226758,0.5154,4598.7,4598.6,0.7186]
[1758241227259,0.219,4598.7,4598.6,0.7186]
[1758241228160,0.7134,4598.7,4598.6,0.7186]
[1758241228457,0.1192,4598.5,4598.4,0.0217]
[1758241228660,0.8189,4598.5,4598.4,0.0217]
[1758241228860,0.4944,4598.4,4597.9,2.1737]
[1758241229056,0.6997,4598.4,4598.3,0.2054]
[1758241229257,0.1192,4598.0,4597.9,2.1737]
[1758241229557,1.0379,4598.0,4597.9,2.1737]
[1758241229751,5.0379,4598.0,4597.9,2.1737]
[1758241229961,0.4059,4597.2,4597.1,2.1737]
[1758241230162,0.9187,4597.2,4597.1,2.1737]
[1758241230762,0.2006,4596.7,4596.6,0.398]
[1758241230964,0.4944,4596.7,4596.6,0.6906]
[1758241231164,0.6997,4596.7,4596.6,0.6906]
[1758241235054,0.2938,4596.7,4596.6,0.6906]
[1758241235257,0.2938,4596.7,4596.4,0.0217]
[1758241235258,0.2938,4597.4,4596.7,0.2926]
[1758241235455,0.6997,4597.4,4597.3,0.498]
[1758241235657,1.66182581,4597.4,4597.3,0.2054]
[1758241235962,1.66182581,4597.4,4596.9,0.2926]
[1758241236163,0.8189,4597.0,4596.9,0.6906]
[1758241238372,0.6997,4597.0,4596.9,0.6906]
[1758241239669,0.9187,4597.0,4596.9,0.6906]
[1758241241270,1.0379,4597.0,4596.9,0.6906]
[1758241242171,0.8189,4597.0,4596.9,0.6906]
[1758241242366,1.0379,4597.0,4596.9,0.6906]
[1758241243266,0.8189,4597.0,4596.9,0.6906]
[1758241243565,1.0379,4597.0,4596.9,0.6906]
[1758241244475,0.8189,4597.0,4596.9,0.6906]
[1758241244673,1.0379,4597.0,4596.9,0.6906]
[1758241245875,1.0379,4597.0,4596.9,0.398]
[1758241246072,1.0379,4597.0,4596.6,0.2926]
[1758241246270,1.0379,4597.0,4596.9,0.2054]
[1758241246776,1.26949521,4597.0,4596.5,0.00326133]
[1758241246972,1.0379,4597.0,4596.5,0.00326133]
[1758241248074,0.5251,4597.0,4596.9,0.398]
[1758241248267,1.56191915,4599.7,4599.1,0.2115]
[1758241248467,0.2938,4600.0,4599.9,0.398]
[1758241248670,0.2938,4600.0,4599.9,0.6095]
[1758241248972,0.8189,4600.0,4599.9,0.2054]
[1758241251281,0.8189,4600.0,4599.9,0.398]
[1758241251873,0.413,4600.0,4599.9,0.6095]
[1758241252175,0.2938,4600.3,4599.9,0.398]
[1758241252377,0.7154,4600.4,4600.3,0.398]
[1758241252781,0.9207,4600.4,4600.3,0.398]
[1758241253981,0.9207,4600.4,4600.3,0.2054]
[1758241254172,0.2938,4600.3,4600.2,3.2078]
[1758241254373,0.6997,4600.3,4600.2,3.2078]
[1758241255976,0.6997,4600.3,4600.2,3.4132]
[1758241257782,0.6997,4600.3,4600.2,3.6105]
[1758241262578,0.3052,4601.3,4601.0,0.2114]
[1758241262776,0.3402,4601.5,4601.2,0.6151]
[1758241262972,0.841,4601.5,4601.4,0.4037]
[1758241263681,0.841,4601.5,4601.4,0.6151]
[1758241264179,0.5008,4601.5,4601.4,0.6151]
[1758241264380,0.6205,4601.5,4601.4,0.4037]
[1758241264577,0.6205,4601.5,4601.4,0.6151]
[1758241265175,0.6205,4601.5,4601.4,0.4037]
[1758241265372,0.8182,4601.5,4601.4,0.4037]
[1758241274982,0.1197,4601.0,4600.9,3.2078]
[1758241275191,0.8182,4601.0,4600.9,3.2078]
[1758241276088,0.8182,4601.0,4600.9,3.4177]
[1758241278283,1.32189676,4601.0,4600.9,3.4177]
[1758241283794,1.54659466,4601.0,4600.9,3.4177]
[1758241286693,1.54659466,4601.0,4600.9,0.2099]
[1758241288692,1.54681939,4601.0,4600.9,0.2099]
[1758241297602,1.56453316,4601.0,4600.9,0.2099]
[1758241298208,1.56453316,4601.0,4600.9,0.4111]
[1758241298611,1.17123316,4601.0,4600.9,0.6225]
[1758241298906,1.05713316,4601.0,4600.9,3.8303]
[1758241299703,1.25303316,4601.0,4600.9,3.8303]
[1758241299908,1.57983316,4601.0,4600.9,3.6189]
[1758241300211,1.57983316,4601.0,4600.9,3.2078]
[1758241301119,1.57983316,4601.0,4600.9,3.4155]
[1758241301418,1.57983316,4601.0,4600.7,0.0217]
[1758241301614,0.3977,4600.8,4600.7,0.0217]
[1758241301822,1.45483316,4600.8,4600.7,0.0217]
[1758241302018,1.45483316,4600.8,4600.7,0.2077]
[1758241302315,1.45483316,4600.8,4600.6,2.1737]
[1758241302316,1.14403316,4600.8,4600.6,2.1737]
[1758241302516,1.45483316,4600.7,4600.6,2.3814]
[1758241304320,0.9511364,4600.7,4600.6,2.3814]
[1758241304522,1.46116475,4600.7,4600.6,2.1737]
[1758241305624,1.46121151,4600.7,4600.6,2.1737]
[1758241312224,0.8335,4600.5,4600.4,3.2295]
[1758241312424,1.58621151,4600.5,4600.4,3.2295]
[1758241312624,1.58621151,4600.5,4600.4,3.2078]
[1758241312820,1.27541151,4600.5,4600.1,2.1737]
[1758241313023,0.7085,4600.2,4600.1,2.1737]
[1758241313230,1.46121151,4600.2,4600.1,2.1737]
[1758241313429,5.67834566,4600.2,4600.1,2.1737]
[1758241313933,0.7085,4599.6,4599.5,0.00326133]
[1758241314227,1.68096566,4599.6,4599.5,0.00326133]
[1758241317331,1.17093731,4599.6,4599.5,0.00326133]
[1758241320325,1.17093731,4599.6,4599.5,0.20476133]
[1758241323034,1.17093731,4599.6,4599.5,0.00326133]
[1758241324236,1.17533731,4599.6,4599.5,0.00326133]
[1758241325041,1.17533731,4599.6,4599.5,0.40596133]
[1758241327732,0.66723731,4599.6,4599.5,0.00326133]
[1758241328034,0.5323,4599.6,4599.5,0.61726133]
[1758241328435,0.78084839,4599.6,4599.5,0.61726133]
[1758241328636,0.98564839,4599.6,4599.5,0.61726133]
[1758241329140,0.7371,4599.6,4599.5,0.61726133]
[1758241329338,0.98565375,4599.6,4599.5,0.61726133]
[1758241331839,0.7371,4599.6,4599.5,0.61726133]
[1758241332235,0.98576427,4599.6,4599.5,0.61726133]
[1758241333137,0.7371,4599.6,4599.5,0.61726133]
[1758241333331,0.78104501,4599.6,4599.5,0.61726133]
[1758241333540,0.78104429,4599.6,4599.5,0.61726133]
[1758241335935,0.56104429,4599.6,4599.5,0.61726133]
[1758241336640,0.76584429,4599.6,4599.5,0.61726133]
[1758241337137,0.76584429,4599.6,4599.5,1.00841133]
[1758241337437,0.3123,4599.9,4599.8,1.00512]
[1758241337640,0.56124562,4599.9,4599.8,4.21292]
[1758241338233,0.24894562,4599.9,4599.8,4.21292]
[1758241338432,0.4248,4600.4,4600.3,0.4027]
[1758241338630,0.98609996,4600.4,4600.3,0.4027]
[1758241338831,1.18189996,4600.4,4600.3,0.4027]
[1758241339338,0.56129996,4600.4,4600.3,0.614]
[1758241339536,0.76609996,4600.4,4600.3,0.4027]
[1758241339738,0.76609996,4600.4,4600.3,0.614]
[1758241340640,0.56129996,4600.4,4600.3,0.614]
[1758241341143,0.56129996,4600.4,4600.3,3.8218]
[1758241342445,0.56132434,4600.4,4600.3,3.8218]
[1758241343344,0.3123,4600.4,4600.3,3.8218]
[1758241344640,0.3123,4600.9,4600.8,0.4027]
[1758241344847,0.3123,4600.9,4600.8,3.6105]
[1758241345339,0.3123,4600.9,4600.8,3.8218]
[1758241345644,0.3123,4601.2,4600.8,3.8305]
[1758241345845,0.7129,4601.4,4601.3,0.4027]
[1758241346040,1.48227235,4601.4,4601.3,3.6105]
[1758241346242,0.9589818,4601.4,4601.3,3.6105]
[1758241347447,0.9589818,4601.4,4601.3,3.8218]
[1758241347640,0.7129,4601.4,4601.3,3.8218]
[1758241348046,0.7129,4601.4,4601.3,3.6105]
[1758241350147,0.7129,4601.4,4601.3,3.8215]
[1758241350448,0.5171,4601.4,4601.3,3.8215]
[1758241352352,0.7291,4601.4,4601.3,3.6105]
[1758241353146,0.7291,4601.4,4601.3,3.2078]
[1758241353347,0.4168,4601.4,4600.8,3.2078]
[1758241353553,0.7366,4600.9,4600.8,3.2078]
[1758241353751,0.7366,4600.9,4600.8,3.4073]
[1758241354055,0.7366,4600.9,4600.8,3.5987]
[1758241356657,0.7366,4600.9,4600.8,3.4073]
[1758241358256,0.7366,4600.9,4600.8,3.2078]
[1758241358458,0.7366,4600.6,4600.5,2.1737]
[1758241359162,0.7366,4600.4,4600.3,3.2078]
[1758241359556,0.7366,4600.4,4600.3,3.4073]
[1758241360453,0.7366,4600.4,4600.3,3.5987]
[1758241360854,0.7366,4600.4,4600.3,3.8097]
[1758241361049,0.3132,4600.4,4600.3,3.8097]
[1758241361251,0.5246,4600.4,4600.3,3.8097]
[1758241361860,0.7366,4600.4,4600.3,3.5987]
[1758241362256,0.7366,4600.4,4600.1,0.0217]
[1758241362452,0.24599203,4600.3,4600.1,0.0217]
[1758241362655,0.98259203,4600.2,4600.1,0.0217]
[1758241362855,1.50076076,4600.2,4600.1,0.0217]
[1758241363051,0.7366,4600.1,4600.0,2.1737]
[1758241363251,0.98259203,4600.1,4599.8,3.2078]
[1758241363455,0.7366,4599.9,4599.8,3.2078]
[1758241363662,0.98259203,4599.9,4599.8,3.2078]
[1758241365165,0.98259203,4599.9,4599.8,3.8097]
[1758241365463,0.24599203,4599.9,4599.8,3.8097]
[1758241365660,0.4287,4600.5,4600.4,0.6019]
[1758241365957,0.5592457,4600.5,4600.4,0.6019]
[1758241367164,0.8861457,4600.5,4600.4,0.6019]
[1758241367862,0.7366,4600.3,4600.2,0.0217]
[1758241368058,0.9826457,4600.3,4600.2,0.0217]
[1758241368754,0.9826457,4600.3,4600.2,0.3909]
[1758241369353,0.7366,4600.1,4600.0,2.1737]
[1758241369556,0.98279096,4600.1,4600.0,2.1737]
[1758241370364,0.98279096,4600.1,4599.3,3.6388]
[1758241370365,0.5246,4599.6,4599.5,2.56786133]
[1758241370562,0.5246,4599.6,4599.5,2.77886133]
[1758241370752,0.3132,4599.6,4599.5,2.77886133]
[1758241372356,0.3132,4600.3,4599.6,0.211]
[1758241372558,0.5246,4600.4,4600.3,0.6019]
[1758241372759,1.28915248,4600.4,4600.3,0.6019]
[1758241373259,1.50115248,4600.4,4600.3,0.3909]
[1758241376468,1.27025248,4600.4,4600.3,0.6025]
[1758241376764,1.27025248,4600.4,4600.3,0.3909]
[1758241376964,1.48225248,4600.4,4600.3,0.3909]
[1758241378461,1.27025248,4600.4,4600.3,0.6025]
[1758241378660,1.46505248,4600.4,4600.3,0.3909]
[1758241379065,1.46505248,4600.4,4600.3,0.1995]
[1758241379465,1.46505248,4600.4,4600.3,0.407]
[1758241380570,1.27025248,4600.4,4600.3,0.6186]
[1758241381157,1.46505248,4600.4,4600.3,0.407]
[1758241381362,0.6226,4600.0,4599.9,3.6216]
[1758241381665,0.8174,4600.0,4599.9,3.2078]
[1758241381871,1.06365276,4600.0,4599.9,3.2078]
[1758241382173,1.58668142,4600.0,4599.9,3.2078]
[1758241382367,1.34042866,4600.0,4599.9,3.2078]
[1758241382668,1.58675051,4600.0,4599.9,3.2078]
[1758241384268,1.06895051,4600.0,4599.9,3.8332]
[1758241385072,1.27665051,4600.0,4599.9,3.8332]
[1758241386373,0.24632185,4600.0,4599.9,4.05059]
[1758241386573,0.2996,4600.5,4600.4,0.6254]
[1758241386876,1.06931267,4600.5,4600.4,3.8332]
[1758241387971,0.24644842,4600.5,4600.4,3.8332]
[1758241388771,0.2996,4601.4,4600.5,0.2116]
[1758241389076,0.5073,4601.4,4601.3,0.4138]
[1758241389265,1.27716986,4601.4,4601.3,0.4138]
[1758241389462,1.47196986,4601.4,4601.3,0.4138]
[1758241390571,1.47196986,4601.4,4601.3,0.6254]
[1758241390572,1.06946986,4601.4,4601.3,0.6254]
[1758241390763,0.7537965,4601.4,4601.3,0.6254]
[1758241390968,0.7537965,4601.4,4601.3,0.4138]
[1758241390969,0.9485965,4601.4,4601.3,0.4138]
[1758241391170,1.47161309,4601.4,4601.3,0.4138]
[1758241391362,0.9485965,4601.4,4601.3,0.4138]
[1758241391966,0.9485965,4601.4,4601.3,0.2063]
[1758241392272,0.9485965,4601.4,4601.2,3.2078]
[1758241392273,0.7021,4601.3,4601.2,3.2078]
[1758241392470,0.9485965,4601.3,4601.2,3.2078]
[1758241392675,0.7537965,4601.3,4601.2,3.8332]
[1758241393079,0.7537965,4601.3,4601.2,3.6216]
[1758241393370,0.7021,4601.3,4601.2,3.4141]
[1758241394378,0.7021,4601.3,4601.2,3.6216]
[1758241395176,0.2996,4601.3,4601.2,3.8332]
[1758241395376,0.5073,4601.3,4601.2,3.8332]
[1758241396673,0.7021,4601.3,4601.2,3.6216]
[1758241397074,0.2996,4601.3,4601.2,3.6216]
[1758241397281,0.2996,4601.4,4601.3,0.6254]
[1758241399579,35.552,4602.0,4601.9,0.4138]
[1758241399782,36.51457717,4602.0,4601.9,0.4138]
[1758241400078,0.2996,4601.9,4601.2,3.2078]
[1758241400279,0.2996,4601.3,4601.2,3.8332]
[1758241401688,0.2996,4601.9,4601.3,0.2116]
[1758241401884,0.7021,4601.9,4601.8,3.2078]
[1758241402074,0.94787926,4601.9,4601.8,3.2078]
[1758241402479,0.1153,4601.5,4601.4,0.2063]
[1758241402674,0.3101,4601.5,4601.4,0.2063]
[1758241402878,0.5178,4601.5,4601.4,0.4138]
[1758241403082,0.8174,4601.5,4601.4,0.4138]
[1758241403583,35.3443,4602.0,4601.5,0.2116]
[1758241403783,0.94786244,4601.9,4601.8,0.2063]
[1758241404683,0.3101,4601.5,4601.4,0.2063]
[1758241404874,0.8174,4601.5,4601.4,0.2063]
[1758241405183,0.4025,4601.3,4601.2,3.2078]
[1758241405383,0.7021,4601.3,4601.2,3.4141]
[1758241405586,0.5073,4601.3,4601.2,3.8332]
[1758241405984,0.7021,4601.3,4601.2,3.6216]
[1758241406491,0.7021,4601.3,4601.2,3.8332]
[1758241406785,0.7021,4601.3,4601.2,3.2078]
[1758241407386,0.5073,4601.3,4601.2,3.8332]
[1758241407586,0.5073,4601.3,4601.2,3.6216]
[1758241407888,0.5073,4601.3,4601.2,3.8332]
[1758241408185,0.7003,4601.3,4601.2,3.6216]
[1758241408882,0.7003,4601.3,4601.2,3.2078]
[1758241409082,0.7003,4601.3,4601.2,3.4069]
[1758241409389,0.2996,4601.4,4601.3,0.6207]
[1758241410086,0.5029,4601.4,4601.3,0.6207]
[1758241412085,0.2996,4601.4,4601.2,3.4268]
[1758241412286,0.6959,4601.4,4601.3,0.4088]
[1758241412490,0.6959,4601.4,4601.3,0.1991]
[1758241412676,0.2996,4601.3,4601.2,3.2078]
[1758241412880,0.6959,4601.3,4601.2,3.2078]
[1758241413588,0.6959,4601.3,4601.2,3.4069]
[1758241414088,0.6959,4601.3,4601.2,3.2078]
[1758241414579,0.2033,4600.8,4600.7,2.1737]
[1758241414781,0.6959,4600.8,4600.7,2.1737]
[1758241415289,0.6959,4600.8,4600.7,2.5825]
[1758241415584,0.6959,4600.8,4600.7,0.4088]
[1758241415884,0.6959,4600.8,4600.7,0.6207]
[1758241416087,0.6959,4600.8,4600.7,0.4088]
[1758241418582,0.19,4601.3,4600.7,0.6207]
[1758241418783,0.5029,4601.1,4601.0,3.2078]
[1758241418982,1.25734677,4601.1,4601.0,3.6166]
[1758241419179,1.05404677,4601.1,4601.0,3.6166]
[1758241419382,1.05404677,4601.1,4601.0,3.8285]
[1758241420583,0.75444677,4601.1,4601.0,3.8285]
[1758241420787,1.05404677,4601.1,4601.0,3.8285]
[1758241421480,0.116,4601.0,4600.5,3.2295]
[1758241421681,0.75437342,4600.9,4600.8,1.7774]
[1758241421989,1.15067342,4600.9,4600.8,1.7774]
[1758241422191,1.45027342,4600.9,4600.8,1.7774]
[1758241422487,1.45027342,4600.9,4600.8,1.9765]
[1758241422891,1.45027342,4600.9,4600.5,3.2295]
[1758241423191,0.3963,4600.6,4600.5,3.2295]
[1758241423387,0.6959,4600.6,4600.5,3.2295]
[1758241423690,0.6959,4600.6,4600.5,3.906]
[1758241423887,0.6959,4600.6,4600.5,3.2078]
[1758241424196,0.6959,4600.4,4600.3,1.7774]
[1758241424392,1.66744889,4600.4,4600.3,1.7774]
[1758241424789,1.45007889,4600.4,4600.3,1.7774]
[1758241424996,0.6959,4599.9,4599.8,3.2078]
[1758241425394,0.94604322,4599.9,4599.8,3.2078]
[1758241425585,0.94604322,4599.9,4599.8,3.4069]
[1758241425889,0.94604322,4599.9,4599.8,3.6963]
[1758241426087,0.94604322,4599.9,4599.8,0.4885]
[1758241426788,0.94604322,4599.9,4599.5,0.29266133]
[1758241426989,0.6959,4599.6,4599.5,0.00326133]
[1758241427191,0.94595377,4599.6,4599.5,0.00326133]
[1758241427489,0.94595377,4599.6,4599.5,0.49176133]
[1758241427980,0.94595377,4599.6,4599.5,0.00326133]
[1758241429792,0.94595377,4599.6,4599.5,0.20236133]
[1758241430092,0.94595377,4599.6,4599.5,0.70146133]
[1758241430293,1.16595377,4599.6,4599.5,0.70146133]
[1758241431191,0.9159,4599.6,4599.5,0.70146133]
[1758241432190,0.9159,4599.6,4599.5,0.00326133]
[1758241432390,1.16539434,4599.6,4599.5,0.00326133]
[1758241433293,0.9159,4599.6,4599.5,0.00326133]
[1758241433994,1.17319221,4599.6,4599.5,0.20236133]
[1758241435395,1.17319221,4599.6,4599.5,0.00326133]
[1758241438397,1.17319221,4599.6,4599.5,0.20446133]
[1758241438702,1.17319221,4599.6,4599.5,0.72406133]
[1758241438994,0.9159,4599.6,4599.5,0.72406133]
[1758241439202,1.17315255,4599.6,4599.5,0.72406133]
[1758241439499,1.17315255,4599.6,4599.5,0.20446133]
[1758241439701,1.17315255,4599.6,4599.5,0.00326133]
[1758241445105,1.17315255,4599.6,4599.5,0.72196133]
[1758241446305,0.95315255,4599.6,4599.5,0.72196133]
[1758241446503,0.47625255,4599.6,4599.5,0.84736133]
[1758241448300,0.68165255,4599.6,4599.5,0.84736133]
[1758241448500,0.98265255,4599.6,4599.5,0.84736133]
[1758241449910,0.47625255,4599.6,4599.5,0.84736133]
[1758241450109,1.19305255,4599.6,4599.5,0.84736133]
[1758241450506,0.47625255,4599.6,4599.5,0.84736133]
[1758241450711,0.25725255,4599.6,4599.5,0.84736133]
[1758241453410,0.78165956,4599.6,4599.5,0.84736133]
[1758241454916,1.28805956,4599.6,4599.5,0.84736133]
[1758241455310,0.98705956,4599.6,4599.5,0.84736133]
[1758241455511,0.78165956,4599.6,4599.5,0.84736133]
[1758241456713,0.5064,4600.6,4600.5,0.407]
[1758241456914,0.97528228,4600.6,4600.5,0.7187]
[1758241457116,1.49998801,4600.6,4600.5,0.7187]
[1758241459223,1.49998801,4600.6,4600.5,0.1991]
[1758241459417,1.49998801,4600.6,4600.2,0.3117]
[1758241459621,0.7168,4600.3,4600.2,0.5108]
[1758241459824,1.24150573,4600.3,4600.2,0.5108]
[1758241460620,0.1236,4600.0,4599.8,3.2078]
[1758241460814,0.7168,4599.9,4599.8,3.2078]
[1758241461015,0.7168,4599.9,4599.8,3.4069]
[1758241461214,0.7168,4599.9,4599.8,3.9265]
[1758241461923,0.301,4600.4,4599.8,3.6148]
[1758241462122,0.9358,4600.4,4600.3,0.1991]
[1758241462319,1.45985217,4600.4,4600.0,0.3117]
[1758241462622,0.7168,4600.0,4599.9,0.7187]
[1758241464121,0.8404,4600.0,4599.9,0.7187]
[1758241465826,0.219,4600.4,4599.9,0.7187]
[1758241466034,1.24074444,4600.3,4600.2,0.7187]
[1758241467932,0.7168,4600.3,4600.2,0.7187]
[1758241468834,1.49711074,4600.3,4600.2,0.7187]
[1758241470736,1.49711074,4600.3,4599.9,0.2976]
[1758241470941,0.6899,4600.0,4599.9,0.5026]
[1758241471144,0.94633998,4600.0,4599.9,0.5026]
[1758241471338,1.07073998,4600.0,4599.9,0.205]
[1758241471639,0.6899,4599.9,4599.8,3.2078]
[1758241471840,0.94633998,4599.9,4599.8,3.2078]
[1758241472441,0.94633998,4599.9,4599.8,3.4128]
[1758241472641,0.94633998,4599.9,4599.8,3.7104]
[1758241473336,0.94633998,4599.9,4599.8,3.9215]
[1758241473745,0.94633998,4599.9,4599.8,3.4128]
[1758241473938,0.94633998,4599.9,4599.8,3.9215]
[1758241475640,0.94633998,4599.9,4599.8,3.4128]
[1758241475835,0.94633998,4599.9,4599.8,3.2078]
[1758241476244,1.4704084,4599.9,4599.6,0.0217]
[1758241476542,0.6899,4599.7,4599.6,0.0217]
[1758241476844,0.6899,4599.7,4599.5,0.00326133]
[1758241476845,1.4704084,4599.7,4599.5,0.00326133]
[1758241477047,4.6782084,4599.6,4599.5,0.00326133]
[1758241477547,4.6782084,4599.6,4598.8,3.2078]
[1758241477548,0.6899,4598.9,4598.8,3.2078]
[1758241477738,1.4704084,4598.9,4598.8,3.2078]
[1758241478436,1.4704084,4598.9,4598.7,0.2976]
[1758241478646,1.4704084,4598.8,4598.7,0.5026]
[1758241479149,0.94633998,4598.8,4598.7,0.5026]
[1758241479545,0.3272,4598.5,4598.4,1.7774]
[1758241479747,1.07073998,4598.5,4598.4,2.28]
[1758241479949,1.07073998,4598.5,4598.4,2.4911]
[1758241480251,0.94633998,4598.5,4598.4,2.4911]
[1758241481449,0.6899,4598.5,4598.4,2.4911]
[1758241487853,0.8143,4598.5,4598.4,1.9824]
[1758241488055,1.07022181,4598.5,4598.4,1.7774]
[1758241488450,1.07021733,4598.5,4598.4,1.7774]
[1758241488650,1.07021733,4598.5,4598.4,1.9824]
[1758241488844,1.07021733,4598.5,4598.4,2.28]
[1758241489051,1.07021733,4598.5,4598.4,1.9824]
[1758241490354,1.07021733,4598.5,4598.4,1.7774]
[1758241491149,0.25591733,4598.5,4598.4,2.4911]
[1758241491347,0.1244,4599.0,4598.5,0.1271]
[1758241491553,0.8143,4599.0,4598.9,0.5026]
[1758241491743,1.59256249,4599.0,4598.9,0.5026]
[1758241492457,1.59256249,4599.0,4598.9,0.205]
[1758241492753,1.59256249,4599.0,4598.6,0.2976]
[1758241492959,0.6899,4598.7,4598.6,0.5026]
[1758241493259,0.94568561,4598.7,4598.6,0.5026]
[1758241493455,0.94568561,4598.7,4598.6,0.7137]
[1758241494157,0.94568561,4598.7,4598.6,0.205]
[1758241494358,0.8143,4598.5,4598.4,2.2827]
[1758241494551,1.07008561,4598.5,4598.4,2.2827]
[1758241494751,1.07008561,4598.5,4598.4,1.9824]
[1758241495154,0.94568561,4598.5,4598.4,2.4809]
[1758241500257,0.6899,4598.5,4598.4,2.4809]
[1758241500465,0.9463343,4598.5,4598.4,2.4809]
[1758241501563,1.0734343,4598.5,4598.4,2.4809]
[1758241502562,0.9463343,4598.5,4598.4,2.4809]
[1758241503163,1.46980407,4598.5,4598.4,2.4809]
[1758241507964,0.77990407,4598.5,4598.4,2.4809]
[1758241512674,1.47360407,4598.5,4598.4,2.4809]
[1758241512972,0.77990407,4598.5,4598.4,2.4809]
[1758241514772,0.77734052,4598.5,4598.4,2.4809]
[1758241515672,0.98154052,4598.5,4598.4,2.4809]
[1758241515878,1.47104052,4598.5,4598.4,2.4809]
[1758241516270,1.27444052,4598.5,4598.4,2.4809]
[1758241517365,1.47104052,4598.5,4598.4,2.4809]
[1758241517573,1.59814052,4598.5,4598.4,2.4809]
[1758241519378,1.47104052,4598.5,4598.4,2.4809]
[1758241524073,0.77734052,4598.5,4598.4,2.4809]
[1758241527878,0.25387075,4598.5,4598.4,2.4809]
[1758241528076,0.219,4599.2,4598.4,2.4809]
[1758241528377,0.77353978,4599.1,4599.0,0.8122]
[1758241529172,0.77343596,4599.1,4599.0,0.8122]
[1758241529878,0.77343596,4599.1,4599.0,4.8122]
[1758241529879,0.24849367,4599.1,4599.0,4.8122]
[1758241530371,35.5404,4599.9,4599.0,4.5105]
[1758241530573,1.28300729,4599.8,4599.7,0.3955]
[1758241530875,1.28300729,4599.8,4599.7,0.6972]
[1758241531172,1.28300729,4599.8,4599.7,3.905]
[1758241532077,0.97460729,4599.8,4599.7,3.905]
[1758241533782,1.28300729,4599.8,4599.7,3.905]
[1758241534279,1.48520729,4599.8,4599.7,3.905]
[1758241535778,0.97460729,4599.8,4599.7,3.905]
[1758241538388,1.28300729,4599.8,4599.7,3.905]
[1758241540493,0.2482764,4599.8,4599.7,3.905]
[1758241540681,3.2078,4600.6,4600.2,0.3955]
[1758241540978,1.07937332,4600.5,4600.3,0.6972]
[1758241541179,0.77097332,4600.4,4600.3,0.3955]
[1758241541384,0.24779101,4600.4,4600.3,0.3955]
[1758241541685,0.24779101,4600.4,4600.3,0.6972]
[1758241542275,0.5274,4600.7,4600.3,0.6972]
[1758241542480,0.75812277,4600.6,4600.5,0.5105]
[1758241542682,0.75812277,4600.6,4600.5,0.8122]
[1758241542985,0.44972277,4600.6,4600.5,0.8122]
[1758241543480,3.2078,4601.2,4600.5,0.8122]
[1758241543481,0.4211,4601.1,4601.0,0.3955]
[1758241543680,0.97704512,4601.1,4601.0,0.6972]
[1758241543874,1.70187004,4601.1,4601.0,0.6972]
[1758241545280,1.17924512,4601.1,4601.0,0.6972]
[1758241556291,1.70185251,4601.1,4601.0,0.6972]
[1758241559894,1.48285251,4601.1,4601.0,0.6972]
[1758241560094,1.70185251,4601.1,4601.0,0.6972]
[1758241564890,0.77015251,4601.1,4601.0,0.814]
[1758241565090,0.219,4601.6,4601.5,0.4074]
[1758241565297,0.98379838,4601.6,4601.5,0.8126]
[1758241568996,0.98391359,4601.6,4601.5,0.8126]
[1758241569592,1.18111359,4601.6,4601.5,0.6958]
[1758241569894,0.7213,4601.4,4601.3,0.0217]
[1758241570098,0.96211359,4601.4,4601.3,0.0217]
[1758241570297,0.1158,4601.0,4600.8,1.7774]
[1758241570500,0.96211359,4600.9,4600.8,1.9805]
[1758241570695,0.96211359,4600.9,4600.8,2.2689]
[1758241571299,0.96211359,4600.9,4600.8,0.2031]
[1758241571892,0.96211359,4600.9,4600.8,0.4915]
[1758241572590,0.3154,4600.8,4600.6,0.2884]
[1758241572795,0.96211359,4600.7,4600.6,0.4915]